bitfinex-derivatives/quotes_BTCF0:USTF0_20250213
["timestamp","ask_amount","ask_price","bid_price","bid_amount"]
[1739462421870,0.2082526,96023.0,96007.0,0.28386723]
[1739462422076,0.00015619,96026.0,96024.0,0.2082504]
[1739462422274,0.00015619,96026.0,96025.0,0.2082482]
[1739462422669,0.0640713,96029.0,96028.0,0.2082417]
[1739462424581,0.0650713,96029.0,96028.0,0.2082417]
[1739462425271,0.0660713,96029.0,96028.0,0.2082417]
[1739462426085,0.2082531,96024.0,96023.0,0.2082517]
[1739462426278,0.0660713,96029.0,96021.0,0.3608]
[1739462426279,0.2082535,96023.0,96021.0,0.3608]
[1739462426481,0.06563131,96029.0,96028.0,0.2082417]
[1739462426680,0.0650713,96029.0,96028.0,0.2082417]
[1739462426983,0.002,96029.0,96028.0,0.2082417]
[1739462427379,0.001,96029.0,96028.0,0.2082417]
[1739462428078,0.002,96029.0,96028.0,0.2082417]
[1739462428587,0.001,96029.0,96028.0,0.2082417]
[1739462429487,0.003,96029.0,96028.0,0.2082417]
[1739462429891,0.002,96029.0,96028.0,0.2082417]
[1739462430089,0.003,96029.0,96028.0,0.2082417]
[1739462430991,0.001,96029.0,96028.0,0.2082417]
[1739462431190,0.003,96029.0,96028.0,0.2082417]
[1739462431494,0.3608,96033.0,96013.0,0.2082738]
[1739462431792,0.3608,96033.0,96032.0,0.208233]
[1739462432694,0.00015576,96038.0,96021.0,0.3608]
[1739462432881,0.36095576,96038.0,96037.0,0.2082222]
[1739462433081,0.37605508,96038.0,96037.0,0.2082222]
[1739462433988,0.36095576,96038.0,96037.0,0.2082222]
[1739462434294,0.00015576,96038.0,96037.0,0.2082222]
[1739462434481,0.0148132,96038.0,96037.0,0.2082222]
[1739462434678,0.36095576,96038.0,96037.0,0.2082222]
[1739462435289,0.57217576,96038.0,96037.0,0.2082222]
[1739462435496,0.2082335,96033.0,96032.0,0.2082297]
[1739462435984,0.37909203,96038.0,96022.0,0.2082529]
[1739462435985,0.2082528,96023.0,96022.0,0.2082529]
[1739462436194,0.3608,96023.0,96022.0,0.2082529]
[1739462436791,0.2082654,96018.0,96003.0,0.0769]
[1739462437090,0.3608,96005.0,96004.0,0.2082927]
[1739462437483,0.3608,96013.0,96012.0,0.2082764]
[1739462439283,0.3608,96013.0,96012.0,0.2092764]
[1739462440090,0.3608,96013.0,96012.0,0.001]
[1739462440288,0.44,96013.0,96012.0,0.001]
[1739462442290,0.49066683,96013.0,96012.0,0.001]
[1739462442489,0.22014137,96013.0,96012.0,0.001]
[1739462442788,0.05066683,96013.0,96012.0,0.001]
[1739462443985,0.05066683,96013.0,96012.0,0.2092764]
[1739462444594,0.25894103,96013.0,96012.0,0.001]
[1739462444988,0.34034103,96013.0,96012.0,0.001]
[1739462445386,0.34034103,96013.0,96012.0,0.00043169]
[1739462445881,0.2082973,96003.0,96001.0,0.00015619]
[1739462446086,0.5690973,96003.0,96001.0,0.00015619]
[1739462446282,0.5690973,96003.0,96002.0,0.2082981]
[1739462447192,0.3608,96003.0,96002.0,0.2082981]
[1739462447789,0.3608,96003.0,96002.0,0.2112981]
[1739462449801,0.05066683,96013.0,96012.0,0.2082764]
[1739462450593,0.12506723,96020.0,96002.0,0.003]
[1739462450594,0.12506723,96020.0,96013.0,0.2082742]
[1739462450790,0.72401531,96022.0,96013.0,0.2082742]
[1739462450791,9e-08,96014.0,96013.0,0.2082742]
[1739462450990,0.3608,96033.0,96022.0,0.2082547]
[1739462451190,0.12506723,96032.0,96022.0,0.2082547]
[1739462452094,0.2082356,96031.0,96022.0,0.2082547]
[1739462452399,0.01656241,96023.0,96022.0,0.2082547]
[1739462452992,0.02156241,96023.0,96022.0,0.2082547]
[1739462454913,0.02156241,96023.0,96014.0,0.4405]
[1739462454914,0.38236241,96023.0,96015.0,0.2082691]
[1739462455198,0.2082577,96021.0,96016.0,0.2082662]
[1739462455793,0.2082604,96020.0,96016.0,0.2082662]
[1739462455992,0.2861619,96019.0,95996.0,0.3608]
[1739462456197,0.3608,96010.0,96009.0,0.2082829]
[1739462456394,0.5690807,96010.0,96006.0,0.2082888]
[1739462456598,0.3608,96010.0,95997.0,0.0805]
[1739462456789,0.3608,96010.0,96008.0,0.2082844]
[1739462458001,0.3608,96010.0,95997.0,0.0805]
[1739462458195,0.3608,96010.0,96002.0,0.2082967]
[1739462458395,0.3608,96010.0,96006.0,0.2082886]
[1739462459401,0.208286,96008.0,96006.0,0.2082886]
[1739462460299,0.2082957,96004.0,96002.0,0.001]
[1739462460496,0.3608,96008.0,96007.0,0.2082872]
[1739462462802,0.3608,96008.0,96007.0,0.2092872]
[1739462463195,0.49096334,96008.0,96007.0,0.2092872]
[1739462465303,0.13016334,96008.0,96007.0,0.2092872]
[1739462466509,0.49096334,96008.0,96007.0,0.2092872]
[1739462466908,0.69924844,96008.0,96007.0,0.2092872]
[1739462467109,1.06004844,96008.0,96007.0,0.001]
[1739462467304,0.85176334,96008.0,95991.0,0.2083217]
[1739462467501,0.208323,95991.0,95990.0,0.2083236]
[1739462467706,0.72216001,95992.0,95973.0,0.1619]
[1739462468010,0.72216001,95992.0,95979.0,0.208348]
[1739462468011,0.3608,95980.0,95979.0,0.208348]
[1739462468214,0.3608,95980.0,95973.0,0.3702609]
[1739462468513,0.3608,95980.0,95973.0,0.2083609]
[1739462468701,0.0818,95979.0,95974.0,0.208358]
[1739462468900,0.2083556,95976.0,95970.0,0.00015628]
[1739462469108,0.3608,95971.0,95970.0,0.20852238]
[1739462470208,0.173,95978.0,95977.0,0.2083511]
[1739462472823,0.18,95978.0,95977.0,0.001]
[1739462473018,0.25912,95978.0,95977.0,0.001]
[1739462473522,0.25212,95978.0,95977.0,0.001]
[1739462473724,0.25212,95978.0,95977.0,0.002]
[1739462473725,0.25912,95978.0,95977.0,0.002]
[1739462474020,0.18,95978.0,95977.0,0.002]
[1739462474214,0.007,95978.0,95977.0,0.002]
[1739462474616,0.007,95978.0,95977.0,0.1642]
[1739462475610,1e-08,95979.0,95978.0,0.2083502]
[1739462475810,0.07912,95992.0,95977.0,0.1642]
[1739462475811,9e-08,95989.0,95988.0,0.2083285]
[1739462476013,0.34303746,96007.0,96006.0,0.2082894]
[1739462476615,0.23857556,96007.0,96006.0,0.2082894]
[1739462477216,0.23857556,96007.0,96006.0,0.2092894]
[1739462477624,0.23857556,96007.0,96006.0,0.20721982]
[1739462477824,0.23857556,96007.0,96006.0,0.20821982]
[1739462478519,0.23957556,96007.0,96006.0,0.20921982]
[1739462478925,6e-08,96007.0,96006.0,0.22114159]
[1739462479226,6e-08,96007.0,96006.0,0.20821982]
[1739462479727,0.01160375,96014.0,96013.0,0.2082742]
[1739462480021,0.00015596,96016.0,96015.0,0.2082699]
[1739462480714,0.0118401,96016.0,96015.0,0.2082699]
[1739462480924,0.00015596,96016.0,96015.0,0.2082699]
[1739462481318,0.36095596,96016.0,96007.0,0.2082851]
[1739462481518,0.3608,96008.0,96007.0,0.2082851]
[1739462481725,0.37261173,96016.0,96015.0,0.2082699]
[1739462485134,0.01181173,96016.0,96015.0,0.2082699]
[1739462486224,0.37261173,96016.0,96001.0,0.1566]
[1739462486426,0.12506723,96011.0,96009.0,0.2082823]
[1739462486626,0.54621174,96016.0,96011.0,0.208278]
[1739462486824,0.54561173,96016.0,96011.0,0.208278]
[1739462487017,0.55850035,96016.0,96015.0,0.2082699]
[1739462487428,0.55850035,96016.0,96001.0,0.1566]
[1739462487429,0.55850035,96016.0,96008.0,0.2082832]
[1739462487733,0.55850035,96016.0,96001.0,0.1566]
[1739462487734,0.2082857,96008.0,96003.0,0.2082954]
[1739462488032,0.5690857,96008.0,96005.0,0.2082905]
[1739462488227,0.3608,96008.0,96006.0,0.2082885]
[1739462490436,0.19770035,96016.0,96000.0,0.3608]
[1739462490737,0.01181173,96016.0,96015.0,0.2082699]
[1739462491828,0.173,96013.0,96008.0,0.2082833]
[1739462492030,0.173,96003.0,96002.0,0.2082978]
[1739462492335,0.2083067,95999.0,95982.0,0.3608]
[1739462492525,0.2083067,95999.0,95970.0,0.48586723]
[1739462492526,0.173,95998.0,95983.0,0.0775]
[1739462493239,0.173,95998.0,95996.0,0.2083109]
[1739462493639,0.173,95999.0,95998.0,0.2083068]
[1739462494748,0.173,96008.0,96007.0,0.2082872]
[1739462496934,0.173,96001.0,95987.0,0.3608]
[1739462497135,0.173,95998.0,95987.0,0.3608]
[1739462497341,0.173,95998.0,95995.0,0.208313]
[1739462497545,0.173,95998.0,95987.0,0.3608]
[1739462497738,0.173,95998.0,95980.0,0.156]
[1739462498239,0.173,95998.0,95990.0,0.2083232]
[1739462499027,0.173,95998.0,95980.0,0.156]
[1739462499231,0.173,95998.0,95993.0,0.2083175]
[1739462500639,0.173,95998.0,95980.0,0.156]
[1739462500640,0.23826139,95998.0,95994.0,0.2083151]
[1739462501346,0.23826139,95998.0,95989.0,0.2083249]
[1739462502142,0.23826139,95998.0,95996.0,0.2083111]
[1739462502541,0.23826139,95998.0,95981.0,0.0520857]
[1739462502749,0.23826139,95998.0,95997.0,0.20846518]
[1739462502750,0.06380112,95998.0,95997.0,0.20846518]
[1739462503247,0.27210782,95998.0,95997.0,0.00015628]
[1739462504244,0.06380112,95998.0,95970.0,0.12506723]
[1739462504443,0.3608,95986.0,95971.0,0.2071908]
[1739462504643,0.3608,95986.0,95985.0,0.208335]
[1739462505743,0.3608,95986.0,95985.0,0.210335]
[1739462507348,0.3608,95986.0,95985.0,0.214335]
[1739462508048,0.3723468,95986.0,95985.0,0.214335]
[1739462508643,0.3723468,95986.0,95985.0,0.006]
[1739462508850,0.5806796,95986.0,95985.0,0.006]
[1739462509050,0.6596796,95986.0,95985.0,0.006]
[1739462509448,0.4513468,95986.0,95971.0,0.1551]
[1739462509642,0.17781457,95972.0,95964.0,0.0792]
[1739462509839,0.2083743,95967.0,95964.0,0.0792]
[1739462510040,0.17781457,95972.0,95964.0,0.0792]
[1739462510249,0.17781457,95972.0,95967.0,0.2083737]
[1739462510646,0.17781457,95972.0,95971.0,0.007]
[1739462511344,0.18977202,95972.0,95971.0,0.2083654]
[1739462511548,0.01195745,95972.0,95971.0,0.2083654]
[1739462511746,0.00015628,95979.0,95964.0,0.0792]
[1739462512148,0.2083506,95978.0,95973.0,0.2083603]
[1739462512450,0.00015628,95979.0,95977.0,0.2083518]
[1739462512858,0.01227105,95979.0,95977.0,0.2083518]
[1739462513156,0.00015628,95979.0,95977.0,0.2083518]
[1739462513948,0.00715628,95979.0,95977.0,0.2093518]
[1739462514352,0.33588052,95978.0,95977.0,0.2093518]
[1739462515569,0.33588052,95978.0,95977.0,0.001]
[1739462515874,0.69668052,95978.0,95977.0,0.001]
[1739462516173,0.69968052,95978.0,95977.0,0.001]
[1739462516373,0.90803072,95978.0,95977.0,0.001]
[1739462516875,0.90903072,95978.0,95977.0,0.002]
[1739462517177,0.6414297,95978.0,95977.0,0.002]
[1739462517968,0.2083732,95968.0,95965.0,0.3608]
[1739462518172,0.2083732,95968.0,95967.0,0.208374]
[1739462518772,0.3608,95968.0,95960.0,0.00015628]
[1739462518969,0.2083775,95966.0,95964.0,0.2083791]
[1739462519980,0.2083775,95966.0,95960.0,0.00015628]
[1739462520278,0.002,95966.0,95965.0,0.2083784]
[1739462520868,0.004,95966.0,95965.0,0.2083784]
[1739462522277,0.002,95966.0,95965.0,0.2083784]
[1739462522473,0.005,95966.0,95965.0,0.2083784]
[1739462522977,0.003,95966.0,95965.0,0.5691784]
[1739462523175,0.01190081,95979.0,95965.0,0.3608]
[1739462523382,0.00015628,95979.0,95978.0,0.2083501]
[1739462523867,0.00015628,95979.0,95978.0,0.5691501]
[1739462524181,0.01181327,95981.0,95978.0,0.5691501]
[1739462524182,0.10251928,95982.0,95980.0,0.2083458]
[1739462524381,0.10251928,95982.0,95981.0,0.0794]
[1739462525279,0.0015634,95986.0,95985.0,0.2083349]
[1739462526477,0.0025634,95986.0,95985.0,0.2083349]
[1739462527376,0.0025634,95986.0,95975.0,0.0838]
[1739462527581,0.2083446,95981.0,95975.0,0.2921557]
[1739462527785,0.2083458,95980.0,95975.0,0.0838]
[1739462527971,0.12506723,95985.0,95984.0,0.2083368]
[1739462528176,0.001,95986.0,95985.0,0.2083346]
[1739462528882,0.12506723,96000.0,95990.0,0.2083237]
[1739462529391,0.2083194,95992.0,95990.0,0.2083237]
[1739462529884,0.3608,95998.0,95990.0,0.2083237]
[1739462530080,0.3608,95998.0,95981.0,0.00015628]
[1739462530081,0.2083311,95987.0,95985.0,0.2083344]
[1739462530285,0.2083311,95987.0,95981.0,0.00015628]
[1739462530286,0.2083411,95982.0,95981.0,0.00015628]
[1739462530484,0.3608,95982.0,95962.0,0.1607]
[1739462530786,0.3608,95974.0,95967.0,0.2083733]
[1739462530983,0.3608,95974.0,95960.0,0.081]
[1739462530984,0.2083811,95964.0,95960.0,0.081]
[1739462531184,0.2083811,95964.0,95961.0,0.2083868]
[1739462531486,0.2083685,95970.0,95961.0,0.2083868]
[1739462531784,0.2083685,95970.0,95964.0,0.2083803]
[1739462532186,0.12506723,95971.0,95959.0,0.3608]
[1739462532588,0.0758,95973.0,95967.0,0.208373]
[1739462532790,0.0758,95973.0,95959.0,0.3608]
[1739462532983,0.0758,95973.0,95970.0,0.2083666]
[1739462532984,0.07892,95972.0,95970.0,0.2083666]
[1739462533283,0.001,95964.0,95959.0,0.3608]
[1739462533485,0.001,95964.0,95963.0,0.2083827]
[1739462534581,0.001,95970.0,95969.0,0.2083697]
[1739462534889,0.00015628,95971.0,95969.0,0.2083697]
[1739462535383,0.00015628,95971.0,95970.0,0.083]
[1739462535688,0.00015628,95971.0,95970.0,0.1658]
[1739462536484,0.00115628,95971.0,95970.0,0.1658]
[1739462537588,0.00215628,95971.0,95970.0,0.1658]
[1739462538096,0.00215628,95971.0,95970.0,0.3741675]
[1739462538589,0.00215628,95971.0,95970.0,0.2083675]
[1739462539076,0.00215628,95971.0,95959.0,0.3608]
[1739462539279,0.00215628,95971.0,95954.0,0.1617]
[1739462539280,0.3608,95968.0,95954.0,0.1617]
[1739462539477,0.12506723,95964.0,95954.0,0.1617]
[1739462539691,0.3608,95968.0,95954.0,0.1617]
[1739462539692,0.076,95963.0,95959.0,0.2083903]
[1739462540189,0.076,95963.0,95960.0,0.2083885]
[1739462540387,0.2083849,95962.0,95948.0,0.208414]
[1739462540586,0.2084005,95955.0,95950.0,0.2084109]
[1739462540976,0.2084005,95955.0,95945.0,0.00156333]
[1739462541175,0.2084005,95955.0,95954.0,0.001]
[1739462541387,0.01141819,95955.0,95954.0,0.001]
[1739462541583,0.5691906,95960.0,95954.0,0.001]
[1739462541782,0.3608,95960.0,95953.0,0.00115628]
[1739462541988,0.2084003,95955.0,95953.0,0.00115628]
[1739462542381,0.2084003,95955.0,95954.0,0.001]
[1739462542581,0.07892,95955.0,95954.0,0.001]
[1739462543887,0.07892,95955.0,95954.0,0.003]
[1739462543888,0.09034627,95955.0,95954.0,0.003]
[1739462544089,0.01142627,95955.0,95954.0,0.002]
[1739462544284,0.3608,95960.0,95954.0,0.002]
[1739462544589,0.21689461,95958.0,95954.0,0.210402]
[1739462544791,0.21689461,95958.0,95954.0,0.003]
[1739462544987,0.21689461,95958.0,95957.0,0.2083957]
[1739462545193,0.22850909,95958.0,95957.0,0.2083957]
[1739462546590,0.22850909,95958.0,95957.0,0.5691957]
[1739462546886,0.22850909,95958.0,95957.0,0.5701957]
[1739462547385,0.00015628,95971.0,95970.0,0.2083675]
[1739462547588,0.00015628,95971.0,95970.0,0.5691675]
[1739462548482,0.00115628,95971.0,95970.0,0.5691675]
[1739462548989,0.00215628,95971.0,95970.0,0.5691675]
[1739462550486,0.00215628,95971.0,95965.0,0.2083778]
[1739462550684,0.00215628,95971.0,95963.0,0.2083821]
[1739462550685,0.2083791,95965.0,95963.0,0.2083821]
[1739462550995,0.0847,95970.0,95956.0,0.3608]
[1739462551284,0.0847,95970.0,95967.0,0.2083738]
[1739462551480,0.0847,95970.0,95956.0,0.3608]
[1739462551676,0.0847,95970.0,95969.0,0.2083697]
[1739462552885,0.06139944,95970.0,95969.0,0.2083697]
[1739462553983,0.06239944,95970.0,95969.0,0.2083697]
[1739462556801,0.18764875,95970.0,95969.0,0.2083697]
[1739462557898,0.18764875,95970.0,95967.0,0.3608]
[1739462557899,0.39601625,95970.0,95967.0,0.3608]
[1739462558099,0.3608,95968.0,95958.0,0.1669]
[1739462558595,0.3608,95968.0,95956.0,0.3608]
[1739462558797,0.2083788,95965.0,95958.0,0.2083926]
[1739462559096,0.2083827,95963.0,95958.0,0.2083926]
[1739462560698,0.2093827,95963.0,95958.0,0.2083926]
[1739462561096,0.2093827,95963.0,95956.0,0.001]
[1739462561097,0.2083955,95958.0,95956.0,0.001]
[1739462561295,0.3608,95957.0,95956.0,0.001]
[1739462561491,0.3608,95957.0,95930.0,0.00156358]
[1739462561694,0.3608,95954.0,95930.0,0.00156358]
[1739462561892,0.3608,95933.0,95930.0,0.00156358]
[1739462562389,0.0801,95932.0,95930.0,0.00156358]
[1739462562591,0.0801,95932.0,95915.0,0.3608]
[1739462562903,0.12506723,95925.0,95921.0,0.00015628]
[1739462563103,0.12506723,95931.0,95921.0,0.00015628]
[1739462563302,0.0801,95932.0,95921.0,0.00015628]
[1739462563502,0.12506723,95931.0,95921.0,0.00015628]
[1739462563702,0.0801,95932.0,95930.0,0.006]
[1739462564004,0.09164928,95932.0,95930.0,0.006]
[1739462564805,0.01154928,95932.0,95930.0,0.214454]
[1739462564997,0.00015628,95941.0,95940.0,0.2084327]
[1739462565900,0.21663843,95948.0,95939.0,0.3608]
[1739462566100,0.21663843,95948.0,95947.0,0.5692174]
[1739462566498,0.14014346,95953.0,95952.0,0.2084066]
[1739462566698,0.14014346,95953.0,95952.0,0.5692066]
[1739462568007,0.14114346,95953.0,95952.0,0.5692066]
[1739462568609,0.001,95953.0,95952.0,0.5692066]
[1739462569308,0.01195286,95962.0,95952.0,0.3608]
[1739462569512,0.01195286,95962.0,95961.0,0.208387]
[1739462569909,0.01195286,95962.0,95953.0,0.2084044]
[1739462570112,0.01195286,95962.0,95952.0,0.3618]
[1739462570113,0.2083993,95956.0,95952.0,0.3618]
[1739462570501,0.0832,95955.0,95952.0,0.3618]
[1739462570702,0.07884,95954.0,95953.0,0.2084033]
[1739462571005,0.0832,95955.0,95953.0,0.2084033]
[1739462571406,0.0832,95955.0,95944.0,0.2084233]
[1739462571607,0.33346973,95954.0,95944.0,0.2084233]
[1739462571803,0.0832,95955.0,95943.0,0.00015637]
[1739462572109,0.002,95954.0,95953.0,0.001]
[1739462572310,0.08084,95954.0,95953.0,0.001]
[1739462572814,0.08084,95954.0,95950.0,0.2084096]
[1739462573013,0.003,95954.0,95950.0,0.2084096]
[1739462573608,0.002,95954.0,95952.0,0.2084048]
[1739462573808,0.003,95954.0,95953.0,0.001]
[1739462574014,0.08184,95954.0,95953.0,0.001]
[1739462574815,0.07984,95954.0,95953.0,0.001]
[1739462575013,0.08184,95954.0,95953.0,0.002]
[1739462575411,0.08184,95954.0,95953.0,0.001]
[1739462575919,0.08084,95954.0,95953.0,0.001]
[1739462576221,0.08184,95954.0,95953.0,0.002]
[1739462576516,0.16204,95955.0,95943.0,0.36095637]
[1739462576717,0.003,95954.0,95943.0,0.36095637]
[1739462577217,0.003,95954.0,95950.0,0.2084108]
[1739462577623,0.003,95954.0,95952.0,0.2084057]
[1739462579212,0.002,95954.0,95952.0,0.2084057]
[1739462579413,0.003,95954.0,95953.0,0.3608]
[1739462581214,0.001,95954.0,95953.0,0.3608]
[1739462581519,0.002,95954.0,95953.0,0.3608]
[1739462581826,0.003,95954.0,95953.0,0.3608]
[1739462582018,0.01227789,95954.0,95953.0,0.3608]
[1739462582318,0.01427789,95954.0,95943.0,0.36155637]
[1739462582515,0.0823,95953.0,95951.0,0.2084077]
[1739462583515,0.01427789,95954.0,95953.0,0.2084044]
[1739462583717,0.01427789,95954.0,95943.0,0.36155637]
[1739462584020,0.0786,95953.0,95943.0,0.36095637]
[1739462584321,0.2870054,95953.0,95949.0,0.2084126]
[1739462584521,0.0786,95953.0,95949.0,0.2084126]
[1739462584914,0.0786,95953.0,95943.0,0.36095637]
[1739462585115,0.0806,95953.0,95951.0,0.208408]
[1739462585713,0.06191572,95952.0,95951.0,0.208408]
[1739462586828,0.06391572,95952.0,95951.0,0.208408]
[1739462587725,0.06391572,95952.0,95951.0,0.569208]
[1739462588115,0.06491572,95952.0,95951.0,0.569208]
[1739462588320,0.06291572,95952.0,95951.0,0.569208]
[1739462588519,0.06391572,95952.0,95951.0,0.569208]
[1739462589225,0.06491572,95952.0,95951.0,0.569208]
[1739462589425,0.003,95952.0,95951.0,0.569208]
[1739462589616,0.003,95952.0,95943.0,0.36095637]
[1739462589816,0.2084175,95947.0,95946.0,0.2084196]
[1739462590215,0.0851,95952.0,95951.0,0.2084088]
[1739462591326,0.2935066,95952.0,95946.0,0.2084193]
[1739462591624,0.0851,95952.0,95943.0,0.36095637]
[1739462591825,0.0831,95952.0,95951.0,0.2084088]
[1739462592321,0.0831,95952.0,95951.0,0.2094088]
[1739462592522,0.0831,95952.0,95951.0,0.001]
[1739462592725,0.0831,95952.0,95057.0,0.10331311]
[1739462592726,0.0831,95952.0,95922.0,0.3608]
[1739462593026,0.3608,95941.0,95940.0,0.2084327]
[1739462593228,0.2084162,95948.0,95933.0,0.3608]
[1739462593437,0.0831,95952.0,95946.0,0.2084192]
[1739462593614,0.208409,95951.0,95946.0,0.2084192]
[1739462593820,0.2084114,95950.0,95946.0,0.2084192]
[1739462594018,0.0851,95952.0,95940.0,0.2084313]
[1739462594223,0.3608,95947.0,95939.0,0.00015637]
[1739462594825,0.2084215,95946.0,95939.0,0.00015637]
[1739462595027,0.2084309,95941.0,95939.0,0.00015637]
[1739462595217,0.0843,95940.0,95939.0,0.00015637]
[1739462595826,0.1654,95940.0,95939.0,0.00015637]
[1739462596329,0.2084366,95939.0,95922.0,0.3608]
[1739462596925,0.2084366,95939.0,95932.0,0.2084495]
[1739462597431,0.3608,95933.0,95930.0,0.2084538]
[1739462597630,0.3608,95933.0,95931.0,0.2084511]
[1739462599030,0.3628,95933.0,95931.0,0.2084511]
[1739462599535,0.3628,95933.0,95926.0,0.00015637]
[1739462599831,0.2084597,95928.0,95926.0,0.00015637]
[1739462600034,0.0803,95927.0,95926.0,0.00015637]
[1739462601333,0.0823,95927.0,95926.0,0.00015637]
[1739462601533,0.0833,95927.0,95890.0,0.3608]
[1739462601735,0.3608,95912.0,95897.0,0.0821]
[1739462601934,0.2085071,95906.0,95897.0,0.0821]
[1739462602129,0.12528947,95910.0,95899.0,0.2085218]
[1739462602434,0.12528947,95910.0,95897.0,0.0821]
[1739462602634,0.12528947,95910.0,95905.0,0.2085075]
[1739462602834,0.13952929,95910.0,95905.0,0.2085075]
[1739462604133,0.13952929,95910.0,95905.0,0.2125075]
[1739462604339,0.13952929,95910.0,95905.0,0.004]
[1739462604536,0.3608,95906.0,95895.0,0.00010456]
[1739462604733,0.3608,95896.0,95886.0,0.4364]
[1739462604938,0.3608,95895.0,95886.0,0.0756]
[1739462606437,0.3618,95895.0,95886.0,0.007]
[1739462607328,0.3608,95895.0,95882.0,0.0756]
[1739462607534,0.3618,95895.0,95886.0,0.006]
[1739462608337,0.3618,95895.0,95894.0,0.2085326]
[1739462608937,0.198453,95895.0,95886.0,0.013]
[1739462609138,0.198453,95895.0,95888.0,0.2085454]
[1739462609441,0.198453,95895.0,95889.0,0.2085416]
[1739462610234,0.0823,95905.0,95882.0,0.0756]
[1739462610432,0.01423982,95910.0,95894.0,0.3668]
[1739462610637,0.13952929,95910.0,95894.0,0.3668]
[1739462610947,0.2085203,95900.0,95894.0,0.006]
[1739462611134,0.2085203,95900.0,95891.0,0.3608]
[1739462611331,0.20408947,95904.0,95891.0,0.3608]
[1739462611530,0.2085345,95894.0,95891.0,0.3608]
[1739462611745,0.3608,95900.0,95894.0,0.003]
[1739462611746,0.2085305,95895.0,95894.0,0.003]
[1739462612244,0.3608,95900.0,95877.0,0.00156444]
[1739462612245,0.2085479,95888.0,95877.0,0.00156444]
[1739462612437,0.28278947,95887.0,95877.0,0.00156444]
[1739462612640,0.49133937,95887.0,95877.0,0.00156444]
[1739462613040,0.28278947,95887.0,95877.0,0.00156444]
[1739462613351,0.35938947,95887.0,95877.0,0.00156444]
[1739462613645,0.28278947,95887.0,95876.0,0.3608]
[1739462613844,0.28378947,95887.0,95877.0,0.007]
[1739462614043,0.0828,95887.0,95877.0,0.007]
[1739462614348,0.07884,95886.0,95883.0,0.2085557]
[1739462614550,0.0838,95887.0,95883.0,0.2085557]
[1739462614844,0.0838,95887.0,95885.0,0.3608]
[1739462615041,0.07884,95886.0,95885.0,0.3608]
[1739462615839,0.002,95887.0,95886.0,0.20855]
[1739462616145,0.001,95887.0,95886.0,0.20855]
[1739462617245,0.00015637,95892.0,95891.0,0.2085392]
[1739462619855,0.00015637,95892.0,95891.0,0.2095392]
[1739462620241,0.00015637,95892.0,95891.0,0.2125392]
[1739462626254,0.18523787,95906.0,95891.0,0.2125392]
[1739462626554,0.18523787,95906.0,95905.0,0.2085087]
[1739462628247,0.18723787,95906.0,95905.0,0.2085087]
[1739462628752,0.19123787,95906.0,95905.0,0.2085087]
[1739462629054,0.00015637,95915.0,95914.0,0.2084892]
[1739462629256,0.00015637,95915.0,95914.0,0.5692892]
[1739462629652,0.01493981,95915.0,95914.0,0.5692892]
[1739462629850,0.00015637,95915.0,95914.0,0.5692892]
[1739462630253,0.00615637,95915.0,95914.0,0.5702892]
[1739462630554,0.22064337,95915.0,95914.0,0.5712892]
[1739462630856,0.22064337,95915.0,95914.0,0.3628]
[1739462631152,0.22064337,95915.0,95914.0,0.002]
[1739462631350,0.23518843,95915.0,95914.0,0.002]
[1739462633054,0.02670143,95915.0,95914.0,0.002]
[1739462633243,0.02670143,95915.0,95914.0,0.2104891]
[1739462634251,0.02670143,95915.0,95914.0,0.002]
[1739462634650,0.23518843,95915.0,95914.0,0.002]
[1739462635663,0.2084988,95910.0,95904.0,0.35495001]
[1739462635962,0.0731,95909.0,95904.0,0.35495001]
[1739462636458,0.2085087,95905.0,95904.0,0.35495001]
[1739462636760,0.0731,95909.0,95904.0,0.35495001]
[1739462637653,0.006,95905.0,95904.0,0.35595001]
[1739462638049,0.0731,95909.0,95904.0,0.35595001]
[1739462638050,0.0731,95909.0,95904.0,0.35495001]
[1739462638245,0.2866001,95909.0,95904.0,0.35495001]
[1739462638654,0.0781,95909.0,95907.0,0.2085035]
[1739462639057,0.0821,95909.0,95904.0,0.35495001]
[1739462639263,0.2085144,95903.0,95896.0,0.20868417]
[1739462639457,0.0773,95902.0,95900.0,0.2085191]
[1739462639857,0.0773,95902.0,95901.0,0.2085174]
[1739462640160,0.0773,95902.0,95896.0,0.36095637]
[1739462640360,0.2085261,95897.0,95896.0,0.00015637]
[1739462640767,0.208555,95884.0,95877.0,0.3608]
[1739462640960,0.0738,95883.0,95877.0,0.3608]
[1739462641362,0.0738,95883.0,95882.0,0.2085587]
[1739462642466,0.0738,95883.0,95877.0,0.3608]
[1739462642658,0.0777,95882.0,95877.0,0.3608]
[1739462642858,0.09189987,95882.0,95881.0,0.2085609]
[1739462643059,0.2085612,95881.0,95877.0,0.3608]
[1739462643264,0.09189987,95882.0,95878.0,0.2085667]
[1739462643553,0.2085674,95878.0,95877.0,0.3608]
[1739462643753,0.09189987,95882.0,95868.0,0.25781576]
[1739462643963,0.09189987,95882.0,95858.0,0.3608]
[1739462643964,0.48608947,95878.0,95858.0,0.3608]
[1739462644164,0.2085939,95866.0,95859.0,0.2086083]
[1739462644554,0.0801,95871.0,95859.0,0.2086083]
[1739462644958,0.0801,95871.0,95858.0,0.3608]
[1739462645159,0.2085871,95869.0,95858.0,0.3608]
[1739462645360,0.2085871,95869.0,95861.0,0.2086034]
[1739462645660,0.2085871,95869.0,95858.0,0.3608]
[1739462645860,0.2085871,95869.0,95862.0,0.2086015]
[1739462646259,0.2095871,95869.0,95862.0,0.2086015]
[1739462646466,0.3608,95863.0,95859.0,0.004]
[1739462646665,0.2086046,95861.0,95859.0,0.004]
[1739462646863,0.2086079,95860.0,95858.0,0.004]
[1739462647668,0.2086079,95860.0,95858.0,0.001]
[1739462648070,0.1557,95862.0,95841.0,0.2086472]
[1739462648266,0.052162,95841.0,95830.0,0.24878858]
[1739462648470,0.3608,95842.0,95823.0,0.31038066]
[1739462648471,0.3608,95831.0,95823.0,0.26211091]
[1739462648669,0.2086839,95825.0,95823.0,0.26147091]
[1739462649163,0.3608,95831.0,95823.0,0.26147091]
[1739462649363,0.12528947,95850.0,95826.0,0.3608]
[1739462649563,0.2086373,95846.0,95832.0,0.2086668]